bitfinex-derivatives/quotes_SOLF0:USTF0_20241206
["timestamp","ask_amount","ask_price","bid_price","bid_amount"]
[1733472003533,66.8101,239.41,239.4,6.27299698]
[1733472004335,66.8101,239.41,239.4,7.04041922]
[1733472005135,66.8101,239.41,239.4,3.556]
[1733472006632,4.8101,239.41,239.4,3.556]
[1733472008536,0.0001,239.41,239.4,3.556]
[1733472009438,2.61433,239.53,239.4,1.4693]
[1733472009631,2.61433,239.53,239.52,2.0857]
[1733472009832,1.92,239.67,239.52,1.92]
[1733472010034,1.92,239.67,239.63,2.0847]
[1733472010228,1.455,239.7,239.59,4.08515013]
[1733472010631,1.455,239.7,239.66,2.0845]
[1733472011137,1.92,239.75,239.64,1.92]
[1733472011732,1.92,239.75,239.47,4.18285303]
[1733472011733,1.455,239.74,239.63,2.0847]
[1733472012233,1.5574,239.73,239.63,2.0847]
[1733472012633,1.5574,239.73,239.64,2.0846]
[1733472013940,3.1178,239.73,239.6,1.92]
[1733472014138,3.1178,239.73,239.65,2.0846]
[1733472014434,3.1178,239.73,239.6,1.92]
[1733472014634,1.455,239.74,239.6,1.92]
[1733472015039,1.455,239.74,239.61,1.5623]
[1733472015539,1.455,239.74,239.71,2.084]
[1733472016041,2.9101,239.84,239.68,1.92]
[1733472016042,1.92,239.82,239.68,1.92]
[1733472016239,1.92,239.82,239.69,1.92]
[1733472017134,1.92,239.82,239.74,2.0838]
[1733472017535,1.92,239.82,239.67,2.0844]
[1733472017733,1.92,239.82,239.67,1.92]
[1733472018337,1.92,239.82,239.71,2.084]
[1733472018541,1.92,239.82,239.67,1.92]
[1733472019039,1.92,239.82,239.63,1.92]
[1733472019444,1.4562,239.81,239.63,1.92]
[1733472020039,1.4562,239.81,239.64,2.0847]
[1733472020244,1.4562,239.81,239.62,1.92]
[1733472020742,1.4562,239.81,239.63,2.68129254]
[1733472020942,1.4562,239.81,239.62,1.92]
[1733472021143,1.4562,239.81,239.63,2.68121896]
[1733472021343,1.4562,239.81,239.62,1.92]
[1733472021344,1.4562,239.81,239.64,4.07239078]
[1733472021547,1.4562,239.81,239.62,1.92]
[1733472021743,1.4562,239.81,239.63,2.68038928]
[1733472021940,1.4562,239.81,239.64,2.68038928]
[1733472022136,1.4562,239.81,239.7,2.0843]
[1733472022343,1.4562,239.81,239.67,1.92]
[1733472022542,1.4562,239.81,239.67,6.11503807]
[1733472022848,1.4562,239.81,239.75,2.0838]
[1733472023049,1.4562,239.81,239.67,6.11503807]
[1733472023439,1.4562,239.81,239.68,2.67771741]
[1733472023743,1.4562,239.81,239.67,6.11503807]
[1733472023744,1.4562,239.81,239.69,2.67771741]
[1733472023939,1.4562,239.81,239.7,2.67739727]
[1733472024140,1.92,239.84,239.67,6.11503807]
[1733472024342,1.92,239.88,239.68,6.96098422]
[1733472024539,1.92,239.89,239.69,6.96098422]
[1733472024741,1.92,239.89,239.7,6.96098422]
[1733472024947,1.92,239.89,239.71,6.96098422]
[1733472025144,1.92,239.89,239.72,8.8751461]
[1733472025343,2.9626,239.94,239.73,2.67505619]
[1733472025543,1.92,239.93,239.74,6.95188114]
[1733472025746,1.92,239.93,239.75,2.67505619]
[1733472026044,1.92,239.93,239.82,2.0832]
[1733472026341,1.92,239.93,239.82,4.0032]
[1733472026545,1.92,239.93,239.83,2.0831]
[1733472027649,1.92,239.93,239.75,5.70735158]
[1733472027853,1.92,239.93,239.76,1.92]
[1733472028049,2.9626,239.94,239.76,1.92]
[1733472028347,1.92,239.92,239.8,2.0833]
[1733472028552,1.92,239.92,239.8,4.10478163]
[1733472028847,1.92,239.92,239.81,2.0833]
[1733472029552,1.92,239.92,239.8,2.0834]
[1733472030646,1.92,239.92,239.76,1.92]
[1733472031153,1.92,239.92,239.74,4.0810136]
[1733472031346,1.92,239.92,239.75,2.6733865]
[1733472031552,1.92,239.92,239.7,4.14498497]
[1733472031749,1.92,239.92,239.71,2.67467413]
[1733472031953,1.92,239.92,239.66,1.92]
[1733472031954,1.92,239.92,239.7,4.11412694]
[1733472032153,1.92,239.92,239.66,1.92]
[1733472032351,1.92,239.92,239.71,2.0842]
[1733472032555,1.92,239.92,239.65,1.92]
[1733472032556,5.77261196,239.82,239.73,5.77261196]
[1733472032747,4.9418,239.81,239.73,5.77261196]
[1733472032950,6.4205,239.81,239.73,5.77261196]
[1733472033148,6.4205,239.81,239.73,7.85651196]
[1733472033551,1.92,239.86,239.77,5.77261196]
[1733472033757,5.77261196,239.89,239.81,5.77261196]
[1733472034066,2.9961,239.85,239.81,5.77261196]
[1733472034260,2.9961,239.85,239.83,5.77261196]
[1733472034760,2.9961,239.85,239.84,5.77261196]
[1733472035255,1.5174,239.85,239.84,7.85571196]
[1733472035959,1.5174,239.85,239.84,2.0831]
[1733472036451,1.92,239.88,239.84,2.0831]
[1733472036858,3.4435,239.9,239.84,2.0831]
[1733472037266,3.4435,239.9,239.81,9.01196425]
[1733472037453,3.4435,239.9,239.82,2.0832]
[1733472037657,3.4435,239.9,239.81,9.01196425]
[1733472038260,1.5235,239.9,239.81,9.01196425]
[1733472038456,3.4435,239.9,239.81,9.01196425]
[1733472038669,3.4435,239.9,239.83,2.0831]
[1733472039455,1.5235,239.9,239.84,2.083]
[1733472039661,3.4435,239.9,239.84,2.083]
[1733472039855,1.5701,239.92,239.81,9.01196425]
[1733472040160,3.0342,239.95,239.82,6.96995729]
[1733472040361,3.0342,239.95,239.83,4.60102171]
[1733472040555,3.0342,239.95,239.84,2.68102171]
[1733472040863,3.0342,239.95,239.81,9.01196425]
[1733472041058,3.0342,239.95,239.85,2.0829]
[1733472041265,3.0342,239.95,239.83,4.23023846]
[1733472041460,3.0342,239.95,239.84,2.68666028]
[1733472041659,1.92,239.94,239.85,2.68666028]
[1733472041859,1.92,239.94,239.84,4.06766524]
[1733472042054,1.92,239.94,239.85,2.68652807]
[1733472042261,1.92,239.94,239.86,2.68652807]
[1733472042456,1.92,239.94,239.87,2.68652807]
[1733472042662,1.92,239.94,239.85,9.01196425]
[1733472042863,1.92,239.94,239.86,2.68836331]
[1733472043065,1.92,239.94,239.87,6.90901412]
[1733472043358,1.92,239.94,239.9,2.0825]
[1733472043561,1.92,239.94,239.87,4.22065081]
[1733472043758,1.92,239.94,239.88,2.69100727]
[1733472043961,3.0342,239.95,239.89,4.19307142]
[1733472044264,3.0342,239.95,239.85,9.01196425]
[1733472044460,3.0342,239.95,239.86,7.00595852]
[1733472044763,3.0342,239.95,239.87,7.00595852]
[1733472044963,3.0342,239.95,239.88,6.92644155]
[1733472045164,1.5542,239.95,239.89,2.69459943]
[1733472045462,1.5542,239.95,239.9,2.69336924]
[1733472045665,1.5542,239.95,239.91,2.69336924]
[1733472045865,1.5542,239.95,239.85,9.01196425]
[1733472046066,1.5542,239.95,239.86,7.00327894]
[1733472046266,1.5542,239.95,239.87,11.08587473]
[1733472046468,1.5542,239.95,239.88,7.00327894]
[1733472046663,1.5542,239.95,239.89,2.69356882]
[1733472046866,1.5542,239.95,239.9,2.69356882]
[1733472047066,1.5542,239.95,239.88,2.0827]
[1733472047265,1.5542,239.95,239.89,2.69321231]
[1733472047466,1.5542,239.95,239.9,2.69321231]
[1733472047670,1.5542,239.95,239.88,2.0827]
[1733472047862,1.5542,239.95,239.89,2.69290321]
[1733472048061,1.5542,239.95,239.9,2.69290321]
[1733472048269,1.5542,239.95,239.88,2.0827]
[1733472048467,1.5542,239.95,239.89,2.69252385]
[1733472048766,1.5542,239.95,239.9,2.69252385]
[1733472048967,1.5542,239.95,239.88,2.0827]
[1733472049160,1.5542,239.95,239.89,2.6925626]
[1733472049363,1.5542,239.95,239.87,2.0828]
[1733472049563,1.5542,239.95,239.88,2.69242845]
[1733472049761,1.5542,239.95,239.89,2.69242845]
[1733472049970,1.5542,239.95,239.87,2.0828]
[1733472050169,1.5542,239.95,239.88,2.69355359]
[1733472050467,1.5542,239.95,239.85,9.01196425]
[1733472050662,1.5542,239.95,239.88,2.0827]
[1733472050965,1.5542,239.95,239.82,9.01196425]
[1733472051170,1.5542,239.95,239.83,7.00422045]
[1733472051469,1.5542,239.95,239.84,7.00422045]
[1733472051767,1.5542,239.95,239.85,2.69393094]
[1733472051981,1.5542,239.95,239.86,2.69393094]
[1733472052268,1.5542,239.95,239.82,9.01196425]
[1733472052471,1.5542,239.95,239.83,7.0053301]
[1733472052671,1.5542,239.95,239.85,2.083]
[1733472052970,1.5542,239.95,239.82,9.01196425]
[1733472053172,1.5542,239.95,239.86,2.0828]
[1733472054772,1.5542,239.95,239.87,2.69714651]
[1733472054976,1.5542,239.95,239.87,2.0828]
[1733472055168,1.5542,239.95,239.82,9.01196425]
[1733472055467,1.5542,239.95,239.83,7.01301199]
[1733472055663,1.5542,239.95,239.84,7.01301199]
[1733472055865,1.5542,239.95,239.85,7.01301199]
[1733472056064,1.5542,239.95,239.86,2.6973123]
[1733472056269,1.5542,239.95,239.82,9.01196425]
[1733472056473,1.5542,239.95,239.83,7.01105889]
[1733472056671,1.5542,239.95,239.89,2.0826]
[1733472056872,1.5542,239.95,239.85,9.01196425]
[1733472057072,1.5542,239.95,239.86,7.00855615]
[1733472057374,1.5542,239.95,239.87,2.69559852]
[1733472057576,1.92,239.96,239.88,2.69559852]
[1733472057869,1.92,239.96,239.89,2.69477498]
[1733472058076,1.9,239.98,239.92,5.76384407]
[1733472060175,1.9,239.98,239.86,1.9]
[1733472060381,5.76384407,239.97,239.87,2.69612837]
[1733472060578,5.76384407,239.97,239.88,2.69612837]
[1733472060784,5.76384407,239.95,239.84,2.0831]
[1733472061083,5.76384407,239.95,239.87,5.76384407]
[1733472061280,5.76384407,239.95,239.87,9.8710133]
[1733472061479,7.20844407,239.97,239.87,9.8710133]
[1733472061883,7.20844407,239.97,239.96,2.082]
[1733472063089,7.20844407,239.97,239.87,9.8710133]
[1733472063283,7.20844407,239.97,239.89,5.76384407]
[1733472063989,1.4446,239.97,239.96,2.082]
[1733472064187,1.4446,239.97,239.81,1.9]
[1733472064490,5.76384407,239.96,239.82,11.18730363]
[1733472064687,1.4446,239.97,239.9,2.0825]
[1733472064883,1.4446,239.97,239.88,5.76384407]
[1733472065284,1.4446,239.97,239.96,2.082]
[1733472065490,7.20844407,239.97,239.96,2.082]
[1733472065788,7.20844407,239.97,239.87,5.76384407]
[1733472066088,7.20844407,239.97,239.96,2.082]
[1733472067586,1.9,239.98,239.89,5.76384407]
[1733472067782,1.9,239.98,239.97,2.0819]
[1733472067783,7.66384407,239.98,239.97,2.0819]
[1733472067987,1.9,239.98,239.97,2.0819]
[1733472069887,1.9,239.98,239.82,8.25130709]
[1733472069888,7.66384407,239.98,239.95,2.0821]
[1733472070190,7.66384407,239.98,239.86,5.76384407]
[1733472070191,5.76384407,239.96,239.86,5.76384407]
[1733472070385,5.76384407,239.94,239.87,2.70730806]
[1733472070587,1.9,239.93,239.86,5.76384407]
[1733472070788,1.9,239.93,239.87,2.70743564]
[1733472070985,5.76384407,239.92,239.91,2.0825]
[1733472071691,5.76384407,239.92,239.79,1.5544]
[1733472071891,5.76384407,239.88,239.8,8.47371246]
[1733472072093,1.9,239.87,239.81,2.70986839]
[1733472072285,1.9,239.87,239.8,9.93853622]
[1733472072589,5.76384407,239.84,239.72,4.09948404]
[1733472072794,5.76384407,239.82,239.74,5.76384407]
[1733472072984,5.76384407,239.82,239.75,7.0476815]
[1733472073189,5.76384407,239.82,239.76,2.71064673]
[1733472073388,1.92,239.81,239.73,4.26924086]
[1733472073589,1.4708,239.86,239.76,5.76384407]
[1733472073792,5.76384407,239.84,239.76,5.76384407]
[1733472073990,5.76384407,239.84,239.83,2.0831]
[1733472074187,1.92,239.84,239.78,5.76384407]
[1733472074694,1.92,239.84,239.83,2.0831]
[1733472075297,5.76384407,239.87,239.8,5.76384407]
[1733472075492,3.0364,239.92,239.8,5.76384407]
[1733472075493,1.92,239.86,239.8,5.76384407]
[1733472075690,1.92,239.85,239.8,5.76384407]
[1733472076199,1.92,239.85,239.8,9.929853]
[1733472076392,1.92,239.85,239.84,2.0831]
[1733472084798,1.92,239.85,239.63,3.12833906]
[1733472085003,5.76384407,239.82,239.75,5.76384407]
[1733472085297,5.76384407,239.82,239.76,2.70802747]
[1733472085502,5.76384407,239.8,239.72,5.76384407]
[1733472085693,5.76384407,239.8,239.73,2.70787508]
[1733472085694,1.92,239.79,239.73,2.70787508]
[1733472085898,1.92,239.79,239.74,2.70787508]
[1733472086101,1.92,239.79,239.72,5.76384407]
[1733472086303,1.92,239.79,239.78,2.0836]
[1733472086503,1.92,239.79,239.72,5.76384407]
[1733472086705,1.92,239.79,239.73,2.70700388]
[1733472086895,1.92,239.79,239.72,5.76384407]
[1733472087101,1.92,239.79,239.73,2.70701189]
[1733472087302,1.92,239.79,239.72,5.76384407]
[1733472087503,1.92,239.79,239.73,2.70623167]
[1733472087806,1.92,239.79,239.78,2.0836]
[1733472091400,2.0825,239.91,239.84,2.083]
[1733472091610,5.76384407,239.85,239.84,2.083]
[1733472091802,7.68384407,239.85,239.84,2.083]
[1733472093208,5.76384407,239.85,239.84,2.083]
[1733472093399,7.68384407,239.85,239.84,2.083]
[1733472094398,7.68384407,239.85,239.72,5.76384407]
[1733472094600,5.76384407,239.8,239.72,5.76384407]
[1733472094805,1.92,239.79,239.72,5.76384407]
[1733472095005,1.92,239.79,239.78,2.0836]
[1733472095602,7.68384407,239.79,239.78,2.0836]
[1733472097513,1.92,239.79,239.78,2.0836]
[1733472104116,1.92,239.79,239.7,4.1684]
[1733472104117,1.92,239.79,239.77,2.0836]
[1733472104421,5.76384407,239.78,239.77,2.0836]
[1733472104621,5.76384407,239.78,239.71,2.0842]
[1733472104819,5.76384407,239.73,239.68,4.4867]
[1733472105118,1.92,239.72,239.68,4.4867]
[1733472105318,5.76384407,239.75,239.74,2.0839]
[1733472105520,7.68384407,239.75,239.74,2.0839]
[1733472106014,1.92,239.75,239.74,2.0839]
[1733472106219,7.68384407,239.75,239.74,2.0839]
[1733472109416,7.68384407,239.75,239.57,4.09283316]
[1733472109618,5.76384407,239.66,239.58,4.21935534]
[1733472109823,5.76384407,239.66,239.58,1.5157]
[1733472109824,1.92,239.65,239.58,1.5157]
[1733472110019,1.92,239.65,239.64,2.0848]
[1733472113627,43.38,239.75,239.58,1.5157]
[1733472113928,5.76384407,239.65,239.58,1.5157]
[1733472114228,1.92,239.64,239.63,2.0849]
[1733472115925,1.92,239.64,239.58,1.5157]
[1733472116117,5.76384407,239.62,239.61,2.0851]
[1733472116719,1.92,239.64,239.58,1.5157]
[1733472116926,1.92,239.64,239.63,2.0849]
[1733472117321,1.92,239.64,239.58,1.5157]
[1733472117322,1.5588,239.74,239.58,1.5157]
[1733472117526,1.92,239.73,239.58,1.5157]
[1733472118124,5.76384407,239.65,239.58,1.5157]
[1733472118329,1.92,239.64,239.58,1.5157]
[1733472118725,1.92,239.64,239.63,2.0849]
[1733472123532,1.5588,239.74,239.58,1.5157]
[1733472123735,1.92,239.73,239.58,4.1862906]
[1733472123934,5.76384407,239.66,239.59,8.80994407]
[1733472124130,3.56661,239.76,239.75,2.0838]
[1733472124324,11.25045407,239.76,239.64,4.16291516]
[1733472124529,5.76384407,239.72,239.64,5.58821516]
[1733472124733,1.92,239.71,239.7,2.0843]
[1733472125334,5.76384407,239.72,239.71,2.0842]
[1733472125533,7.68384407,239.72,239.71,2.0842]
[1733472131236,5.33124407,239.72,239.71,2.0842]
[1733472131442,9.33045407,239.76,239.75,2.0838]
[1733472131839,11.25045407,239.76,239.75,2.0838]
[1733472136746,5.48661,239.76,239.75,2.0838]
[1733472136953,11.25045407,239.76,239.75,2.0838]
[1733472137847,9.33045407,239.76,239.75,2.0838]
[1733472138046,1.561,239.89,239.75,5.76384407]
[1733472138251,5.76384407,239.83,239.75,5.76384407]
[1733472138550,7.68384407,239.83,239.82,2.0832]
[1733472142249,1.92,239.83,239.82,2.0832]
[1733472142548,7.68384407,239.83,239.82,2.0832]
[1733472143455,1.6488,239.96,239.9,2.0825]
[1733472143750,1.6488,239.96,239.78,9.9057674]
[1733472143751,5.76384407,239.91,239.78,9.9057674]
[1733472143953,5.76384407,239.85,239.79,1.5624]
[1733472144151,7.68384407,239.85,239.79,1.5624]
[1733472144452,7.68384407,239.85,239.79,3.2649]
[1733472144945,5.76384407,239.83,239.79,3.2649]
[1733472146648,5.76384407,239.83,239.82,2.0832]
[1733472147554,1.92,239.85,239.79,3.2649]
[1733472147750,1.92,239.85,239.84,2.0831]
[1733472147751,7.68384407,239.85,239.84,2.0831]
[1733472163262,1.92,239.85,239.84,2.0831]
[1733472163563,7.68384407,239.85,239.84,2.0831]
[1733472172268,7.68384407,239.85,239.69,4.1687]
[1733472172464,5.76384407,239.77,239.69,9.93254407]
[1733472172659,7.66384407,239.77,239.72,4.12680916]
[1733472172865,7.66384407,239.77,239.73,2.71410062]
[1733472173165,7.66384407,239.77,239.76,2.0838]
[1733472174671,1.9,239.77,239.76,2.0838]
[1733472178574,0.9,239.77,239.76,4.80427752]
[1733472178770,5.76384407,239.83,239.76,2.72047752]
[1733472178980,1.92,239.82,239.77,2.72047752]
[1733472179283,1.92,239.82,239.75,9.93164407]
[1733472179481,3.2895,239.88,239.76,7.07598497]
[1733472179785,5.76384407,239.83,239.77,12.65277675]
[1733472180083,1.92,239.82,239.81,2.0833]
[1733472180479,1.6093,239.96,239.78,4.21014281]
[1733472180679,5.76384407,239.86,239.79,8.485613]
[1733472180884,1.7107,239.94,239.8,6.87770031]
[1733472181084,5.76384407,239.87,239.81,2.72176893]
[1733472181287,7.66384407,239.87,239.82,2.72066267]
[1733472181485,6.42768814,239.87,239.8,4.15593138]
[1733472181684,6.42768814,239.87,239.81,2.72151477]
[1733472181883,6.42768814,239.87,239.82,2.72151477]
[1733472182083,315.67725,239.95,239.91,2.0824]
[1733472182278,5.76384407,239.92,239.82,5.76384407]
[1733472182481,1.9,239.91,239.84,5.76384407]
[1733472182683,1.9,239.91,239.85,2.72148127]
[1733472182883,5.76384407,239.92,239.91,2.0825]
[1733472183080,7.66384407,239.92,239.91,2.0825]
[1733472183780,315.67725,239.95,239.81,1.6835]
[1733472183781,315.67725,239.95,239.94,2.0822]
[1733472183983,323.34109407,239.95,239.94,2.0822]
[1733472184489,317.57725,239.95,239.94,2.0822]
[1733472184679,323.34109407,239.95,239.94,2.0822]
[1733472190590,323.34109407,239.95,239.92,2.0823]
[1733472190895,5.76384407,239.93,239.92,2.0823]
[1733472193692,5.76384407,239.93,239.78,3.226]
[1733472193898,5.76384407,239.88,239.82,2.71411419]
[1733472194093,1.9,239.87,239.8,9.89896481]
[1733472194295,1.9,239.87,239.86,2.0829]
[1733472202198,1.9,239.87,239.85,2.083]
[1733472202398,5.76384407,239.86,239.85,2.083]
[1733472202794,1.9,239.87,239.86,2.0829]
[1733472202994,7.66384407,239.87,239.86,2.0829]
[1733472203399,3.2833,239.92,239.82,5.76384407]
[1733472203600,1.9,239.88,239.82,5.76384407]
[1733472204602,1.9,239.88,239.87,2.0828]
[1733472207406,5.76384407,239.91,239.9,2.0826]
[1733472207703,7.66384407,239.91,239.9,2.0826]
[1733472209599,5.76384407,239.91,239.9,2.0826]
[1733472209799,7.66384407,239.91,239.9,2.0826]
[1733472211702,7.66384407,239.91,239.83,1.6721]
[1733472212007,5.76384407,239.85,239.83,1.6721]
[1733472212209,1.9,239.84,239.83,3.7553]
[1733472213406,1.9,239.84,239.83,2.0832]
[1733472215302,315.67725,239.95,239.83,5.76384407]
[1733472215506,315.67725,239.95,239.87,5.76384407]
[1733472215810,315.67725,239.95,239.94,2.0822]
[1733472220403,308.73266,239.95,239.94,2.0822]
[1733472220801,308.73266,239.95,239.94,3.7719]
[1733472223809,306.36956,239.95,239.94,3.7719]
[1733472224612,306.36956,239.95,239.94,5.3886]
[1733472225411,306.36956,239.95,239.94,9.59266956]
[1733472225709,306.36956,239.95,239.94,5.3886]
[1733472226015,306.36956,239.95,239.94,9.49306878]
[1733472226511,306.36956,239.95,239.94,5.3886]
[1733472228311,306.36956,239.95,239.94,3.7719]
[1733472228815,306.36956,239.95,239.94,2.0822]
[1733472232010,314.03340407,239.95,239.94,2.0822]
[1733472232610,308.26956,239.95,239.94,2.0822]
[1733472232810,314.03340407,239.95,239.94,2.0822]
[1733472235116,308.26956,239.95,239.94,2.0822]
[1733472235318,314.03340407,239.95,239.94,2.0822]
[1733472240226,314.03340407,239.95,239.71,43.36]
[1733472240421,5.76384407,239.9,239.82,5.76384407]
[1733472240621,1.9,239.89,239.81,4.17028082]
[1733472240824,1.9,239.89,239.81,5.76384407]
[1733472241025,5.76384407,239.88,239.72,4.08856766]
[1733472241224,5.76384407,239.84,239.74,5.76384407]
[1733472241425,1.9,239.83,239.82,2.0833]
[1733472241725,1.9,239.83,239.76,5.76384407]
[1733472241926,3.2292,239.94,239.91,2.0824]
[1733472242123,5.76384407,239.92,239.81,5.76384407]
[1733472242317,1.9,239.93,239.81,5.76384407]
[1733472242318,5.76384407,239.89,239.81,5.76384407]
[1733472242622,1.9,239.88,239.81,5.76384407]
[1733472243129,5.76384407,239.89,239.81,5.76384407]
[1733472243329,1.9,239.89,239.83,5.76384407]
[1733472243720,1.9,239.89,239.88,2.0827]
[1733472244422,5.76384407,239.93,239.92,2.0824]
[1733472244628,7.66384407,239.93,239.92,2.0824]
[1733472245428,1.9,239.93,239.92,2.0824]
[1733472248237,7.66384407,239.93,239.92,2.0824]
[1733472248632,1.9,239.93,239.92,2.0824]
[1733472248832,7.66384407,239.93,239.92,2.0824]
[1733472253440,1.9,239.93,239.92,2.0824]
[1733472253739,306.36956,239.95,239.94,2.0822]
[1733472253939,308.26956,239.95,239.94,2.0822]
[1733472254138,314.03340407,239.95,239.94,2.0822]
[1733472257132,308.26956,239.95,239.94,2.0822]
[1733472258237,314.03340407,239.95,239.94,2.0822]
[1733472267847,314.03340407,239.95,239.84,4.24823389]
[1733472268047,5.76384407,239.89,239.85,7.06441269]
[1733472268246,1.9,239.88,239.86,2.7170818]
[1733472268447,1.9,239.88,239.87,2.7170818]
[1733472268650,1.9,239.88,239.81,14.00686105]
[1733472268846,1.9,239.88,239.82,7.06608631]
[1733472269047,1.9,239.88,239.83,7.06608631]
[1733472269250,1.9,239.88,239.84,7.06608631]
[1733472269546,1.9,239.88,239.85,7.06608631]
[1733472269753,1.9,239.88,239.87,2.0828]
[1733472269949,1.9,239.88,239.87,4.8005255]
[1733472270548,1.9,239.88,239.87,2.0828]
[1733472270851,1.9,239.88,239.87,4.80191586]
[1733472271957,1.9,239.88,239.87,2.0828]
[1733472272453,1.9,239.88,239.81,14.00686105]
[1733472272454,1.9,239.88,239.79,4.1170352]
[1733472272651,5.76384407,239.8,239.73,4.20158805]
[1733472272859,5.76384407,239.77,239.74,7.07870671]
[1733472273058,5.76384407,239.77,239.75,7.07870671]
[1733472273358,5.76384407,239.77,239.76,2.7225795]
[1733472273856,5.76384407,239.77,239.76,4.8063795]
[1733472274265,5.76384407,239.77,239.76,2.0838]
[1733472275056,1.9,239.79,239.78,2.0836]
[1733472279065,1.9,239.79,239.68,3.3166]
[1733472279066,7.66384407,239.79,239.45,5.74089554]
[1733472279260,1.5921,239.78,239.5,5.76384407]
[1733472279565,5.76384407,239.6,239.52,5.76384407]
[1733472279762,5.76384407,239.6,239.53,7.0662123]
[1733472279966,5.76384407,239.6,239.59,2.0853]
[1733472280357,5.76384407,239.6,239.49,1.7356]
[1733472280665,5.76384407,239.6,239.58,2.0853]
[1733472284766,5.76384407,239.6,239.51,4.14882541]
[1733472284967,5.76384407,239.56,239.49,5.3727]
[1733472285168,5.76384407,239.56,239.55,2.0856]
[1733472287064,1.9,239.64,239.63,2.0849]
[1733472287269,5.76384407,239.64,239.56,5.76384407]
[1733472288271,5.76384407,239.61,239.55,4.1780477]
[1733472288864,5.76384407,239.61,239.6,2.0852]
[1733472302781,5.76384407,239.61,239.49,3.4727]
[1733472302982,5.76384407,239.52,239.49,3.4727]
[1733472303283,5.76384407,239.52,239.51,2.086]
[1733472316600,2.0,239.57,239.52,2.0859]
[1733472316798,2.0,239.57,239.42,5.79495784]
[1733472316990,5.76384407,239.46,239.43,6.87673688]
[1733472317194,5.76384407,239.46,239.45,2.0865]
[1733472317401,5.76384407,239.46,239.45,4.7313988]
[1733472319999,2.0,239.52,239.51,2.086]
[1733472323398,7.76384407,239.52,239.51,2.086]
[1733472325599,301.58563,239.64,239.46,4.07555354]
[1733472325802,5.76384407,239.52,239.47,6.90533192]
[1733472325997,5.76384407,239.52,239.48,12.72389054]
[1733472326205,5.76384407,239.52,239.49,6.90533192]
[1733472326403,5.76384407,239.52,239.5,6.90533192]
[1733472326604,5.76384407,239.52,239.51,6.90459683]
[1733472327206,5.76384407,239.52,239.51,2.65589689]
[1733472327604,5.76384407,239.52,239.51,4.74189689]
[1733472329603,5.76384407,239.52,239.51,2.086]
[1733472342521,1.96,239.53,239.52,2.0859]
[1733472342716,1.96,239.57,239.47,4.24518743]
[1733472343015,5.76384407,239.52,239.51,2.086]
[1733472343623,5.76384407,239.52,239.51,4.7512436]
[1733472346718,5.76384407,239.52,239.51,2.086]
[1733472347021,5.76384407,239.52,239.51,4.75242339]
[1733472347424,1.96,239.58,239.57,2.0854]
[1733472347624,7.72384407,239.58,239.57,2.0854]
[1733472352930,1.96,239.58,239.57,2.0854]
[1733472353223,301.58563,239.64,239.51,1.92]
[1733472353424,5.76384407,239.61,239.52,12.68832197]
[1733472353629,301.58563,239.64,239.53,6.9244779]
[1733472353831,5.76384407,239.61,239.54,11.05520739]
[1733472354028,5.76384407,239.61,239.55,6.9244779]
[1733472354330,5.76384407,239.59,239.56,2.66225385]
[1733472354528,5.76384407,239.59,239.57,2.66225385]
[1733472354723,5.76384407,239.59,239.55,4.1712]
[1733472354724,5.76384407,239.59,239.58,2.0853]
[1733472354921,5.76384407,239.59,239.52,5.3218]
[1733472355125,5.76384407,239.56,239.53,11.00798769]
[1733472355426,5.76384407,239.56,239.54,2.66200516]
[1733472355729,5.76384407,239.56,239.55,2.66200516]
[1733472356330,301.58563,239.64,239.55,2.66200516]
[1733472356630,5.76384407,239.6,239.56,2.66097219]
[1733472356829,5.76384407,239.6,239.59,2.0853]
[1733472358626,301.58563,239.64,239.63,2.0849]
[1733472359033,307.34947407,239.64,239.63,2.0849]